fUST/lending_fUST_20240703
["ID","MTS","AMOUNT","RATE_DAILY","PERIOD"]
[330993291,1719995379374,-274.738645,0.00014001,2]
[330993292,1719995379415,-225.261355,0.00014001,2]
[330993293,1719995379451,-130.76889876,0.00014001,2]
[330993295,1719995384136,769.24,0.00014,2]
[330993296,1719995384955,500.0,0.00014,2]
[330993297,1719995385656,273.37336231,9.9e-05,2]
[330993299,1719995395361,273.37336231,9.9e-05,2]
[330993300,1719995399953,500.0,0.00014,2]
[330993301,1719995403673,273.37336231,9.9e-05,2]
[330993302,1719995403947,-369.23110124,0.00014001,2]
[330993303,1719995403978,-428.12292173,0.00014001,2]
[330993304,1719995404016,-71.87707827,0.00014001,2]
[330993305,1719995404050,-236.76263249,0.00014001,2]
[330993307,1719995405072,457.64201119,0.00012,2]
[330993308,1719995405193,658.24,0.00014,2]
[330993309,1719995406125,160.09330995,0.00012,2]
[330993310,1719995406585,500.0,0.00014,2]
[330993311,1719995412075,273.37336231,9.9e-05,2]
[330993312,1719995415941,612.97,0.00014,2]
[330993313,1719995420350,273.37336231,9.9e-05,2]
[330993314,1719995427408,6504.01,0.00014,2]
[330993315,1719995428174,2036.15,0.00014,2]
[330993316,1719995428546,273.37336231,9.9e-05,2]
[330993357,1719995437291,273.37336231,9.9e-05,2]
[330993394,1719995438055,-263.23736751,0.00014001,2]
[330993395,1719995438065,-500.0,0.00014001,2]
[330993396,1719995438075,-500.0,0.00014001,2]
[330993397,1719995438084,-500.0,0.00014001,2]
[330993399,1719995438094,-500.0,0.00014001,2]
[330993400,1719995438104,-500.0,0.00014001,2]
[330993401,1719995438113,-500.0,0.00014001,2]
[330993402,1719995438125,-459.61586289,0.00014001,2]
[330993403,1719995438135,-500.0,0.00014001,2]
[330993404,1719995438145,-500.0,0.00014001,2]
[330993405,1719995438155,-500.0,0.00014001,2]
[330993406,1719995438164,-500.0,0.00014001,2]
[330993407,1719995438174,-500.0,0.00014001,2]
[330993408,1719995438183,-500.0,0.00014001,2]
[330993409,1719995438193,-379.63618655,0.00014001,2]
[330993410,1719995438202,-500.0,0.00014001,2]
[330993411,1719995438211,-500.0,0.00014001,2]
[330993412,1719995438221,-500.0,0.00014001,2]
[330993413,1719995438230,-500.0,0.00014001,2]
[330993414,1719995438240,-322.42,0.00014001,2]
[330993415,1719995438249,-500.0,0.00014001,2]
[330993416,1719995438261,-500.0,0.00014001,2]
[330993417,1719995438272,-502.46,0.00014001,2]
[330993418,1719995438282,-500.0,0.00014001,2]
[330993419,1719995438292,-500.0,0.00014001,2]
[330993420,1719995438302,-798.08,0.00014001,2]
[330993421,1719995438312,-762.44,0.00014001,2]
[330993422,1719995438321,-96.17837846,0.00014001,2]
[330993423,1719995438367,-403.82162154,0.00014001,2]
[330993424,1719995438384,-500.0,0.00014001,2]
[330993425,1719995438394,-328.52907427,0.00014001,2]
[330993426,1719995438405,-1037.2,0.00014001,2]
[330993429,1719995438415,-250.35607592,0.00014001,2]
[330993430,1719995438425,-500.0,0.00014001,2]
[330993432,1719995438435,-500.0,0.00014001,2]
[330993433,1719995438445,-500.0,0.00014001,2]
[330993434,1719995438455,-500.0,0.00014001,2]
[330993435,1719995438465,-500.0,0.00014001,2]
[330993436,1719995438475,-500.0,0.00014001,2]
[330993437,1719995438485,-243.42146965,0.00014001,2]
[330993438,1719995438495,-614.79,0.00014001,2]
[330993439,1719995438504,-601.01,0.00014001,2]
[330993440,1719995438514,-727.25,0.00014001,2]
[330993441,1719995438523,-500.0,0.00014001,2]
[330993442,1719995438532,-500.0,0.00014001,2]
[330993443,1719995438542,-3369.62778086,0.00014001,2]
[330993444,1719995438578,776.5,0.00014,2]
[330993448,1719995440232,-2530.95221914,0.00014001,2]
[330993449,1719995440241,-612.97,0.00014001,2]
[330993450,1719995440251,-500.0,0.00014001,2]
[330993451,1719995440260,-11083.02,0.00014002,2]
[330993452,1719995440269,-587.17,0.00014002,2]
[330993453,1719995440278,-500.0,0.00014002,2]
[330993454,1719995440287,-500.0,0.00014002,2]
[330993455,1719995440296,-500.0,0.00014002,2]
[330993456,1719995440306,-426.306376,0.00014002,2]
[330993457,1719995440317,-1835.71,0.00014002,2]
[330993458,1719995440327,-1555.11,0.00014002,2]
[330993459,1719995440336,-500.0,0.00014002,2]
[330993460,1719995440347,-5206.88,0.00014002,2]
[330993461,1719995440357,-1040.92,0.00014002,2]
[330993462,1719995440368,-686.12,0.00014002,2]
[330993463,1719995440380,-500.0,0.00014002,2]
[330993464,1719995440390,-500.0,0.00014002,2]
[330993465,1719995440400,-600.02,0.00014002,2]
[330993466,1719995440410,-500.0,0.00014002,2]
[330993467,1719995440420,-847.03,0.00014002,2]
[330993468,1719995440431,-500.0,0.00014002,2]
[330993469,1719995440441,-3262.76062691,0.00014002,2]
[330993553,1719995446091,273.37336231,9.9e-05,2]
[330993812,1719995449258,1406.38,0.00014,2]
[330994108,1719995454477,273.37336231,9.9e-05,2]
[330994109,1719995462846,500.0,0.00014,2]
[330994110,1719995463093,273.37336231,9.9e-05,2]
[330994111,1719995465789,292.6690935,9.999e-05,2]
[330994112,1719995467218,500.0,0.00014,2]
[330994113,1719995471527,255.26559537,9.9e-05,2]
[330994114,1719995495350,273.37336231,9.9e-05,2]
[330994115,1719995496189,6293.42,0.00014,2]
[330994116,1719995497390,809.75,0.00014,2]
[330994117,1719995498053,549.85,0.00014,2]
[330994118,1719995503485,273.37336231,9.9e-05,2]
[330994119,1719995505172,500.0,0.00014,2]
[330994120,1719995506780,673.96,0.00014,2]
[330994121,1719995508085,320.24993466,9.999e-05,2]
[330994122,1719995509052,5768.97,0.00014,2]
[330994123,1719995511820,273.37336231,9.9e-05,2]
[330994124,1719995513083,293.39966711,0.00014,2]
[330994125,1719995516507,3252.7,0.00014,2]
[330994126,1719995519997,273.37336231,9.9e-05,2]
[330994127,1719995521474,300.0,0.00014,2]
[330994128,1719995523968,300.0,0.00014,2]
[330994129,1719995528530,273.37336231,9.9e-05,2]
[330994130,1719995544124,273.37336231,9.9e-05,2]
[330994131,1719995561106,273.37336231,9.9e-05,2]
[330994132,1719995561271,729.26,0.00014,2]
[330994133,1719995562871,155.48335451,0.00012,2]
[330994134,1719995563007,182.14497945,0.00012,2]
[330994135,1719995569270,273.37336231,9.9e-05,2]
[330994136,1719995569417,155.89852494,0.00012,2]
[330994137,1719995577848,176.28535972,9.999e-05,2]
[330994138,1719995582277,300.0,0.00014,2]
[330994139,1719995585425,273.37336231,9.9e-05,2]
[330994140,1719995587373,539.46535418,0.00012,2]
[330994141,1719995591018,1600.29,0.00014,2]
[330994142,1719995594630,273.37336231,9.9e-05,2]
[330994144,1719995603918,273.37336231,9.9e-05,2]
[330994145,1719995604759,767.17,0.00014,2]
[330994146,1719995611348,224.05783202,0.00012,2]
[330994147,1719995611840,273.37336231,9.9e-05,2]
[330994148,1719995616066,500.0,0.00014,2]
[330994149,1719995619602,157.38039225,9.999e-05,2]
[330994150,1719995620703,273.37336231,9.9e-05,2]
[330994151,1719995624491,661.05,0.00014,2]
[330994152,1719995628766,273.37336231,9.9e-05,2]
[330994153,1719995630790,500.0,0.00014,2]
[330994154,1719995638332,273.37336231,9.9e-05,2]
[330994155,1719995641534,300.0,0.00014,2]
[330994156,1719995641699,803.17,0.00014,2]
[330994157,1719995643557,167.08218984,9.999e-05,2]
[330994158,1719995647662,154.83742071,9.999e-05,2]
[330994159,1719995648994,2060.29,0.00014,2]
[330994160,1719995649418,161.57907032,9.999e-05,2]
[330994161,1719995661709,500.0,0.00014,2]
[330994162,1719995667128,157.38039225,0.00012,2]
[330994163,1719995675099,769.7,0.00014,2]
[330994164,1719995687158,155.6091137,9.999e-05,2]
[330994165,1719995690282,182.35448087,0.0001212,2]
[330994166,1719995694213,500.0,0.00014,2]
[330994167,1719995695955,500.0,0.00014,2]
[330994168,1719995696545,500.0,0.00014,2]
[330994169,1719995700505,193.91712191,0.0001212,2]
[330994170,1719995712688,155.62808659,0.0001212,2]
[330994171,1719995715701,500.0,0.00014,2]
[330994172,1719995716527,843.83809375,9.999e-05,2]
[330994173,1719995717097,157.38039225,0.0001212,2]
[330994174,1719995719062,598.13,0.00014,2]
[330994175,1719995723314,776.01,0.00014,2]
[330994176,1719995729503,500.0,0.00014,2]
[330994177,1719995732897,645.88,0.00014,2]
[330994178,1719995735741,5654.73,0.00014,2]
[330994179,1719995742416,3117.18,0.00014,2]
[330994182,1719995749268,573.2,0.00014,2]
[330994184,1719995767786,154.83742071,9.999e-05,2]
[330994186,1719995787109,157.38039225,0.0001212,2]
[330994190,1719995798300,500.0,0.00014,2]
[330994191,1719995808268,500.0,0.00014,2]
[330994192,1719995810288,155.01688485,0.0001212,2]
[330994193,1719995816528,843.83809375,9.999e-05,2]
[330994194,1719995817539,500.0,0.00014,2]
[330994195,1719995818932,193.91712191,9.999e-05,2]
[330994196,1719995824690,500.0,0.00014,2]
[330994198,1719995831541,843.83809375,9.999e-05,2]
[330994199,1719995831627,993.99,0.00014,2]
[330994200,1719995834804,804.25,0.00014,2]
[330994202,1719995878952,458.3706097,0.00013165,2]
[330994203,1719995888174,575.97,0.00014,2]
[330994204,1719995923126,500.0,0.00014,2]
[330994205,1719995933172,500.0,0.00014,2]
[330994206,1719995945278,500.0,0.00014,2]
[330994207,1719995956104,500.0,0.00014,2]
[330994208,1719995959770,617.02,0.00014,2]
[330994209,1719995974567,500.0,0.00014,2]
[330994211,1719995988164,500.0,0.00014,2]
[330994212,1719995998129,500.0,0.00014,2]
[330994213,1719996000732,728.37,0.00014,2]
[330994214,1719996055523,5419.11,0.00014,2]
[330994216,1719996087212,500.0,0.00014,2]
[330994217,1719996094449,5193.32,0.00014,2]
[330994218,1719996103853,730.67,0.00014,2]
[330994219,1719996113601,500.0,0.00014,2]
[330994220,1719996124531,500.0,0.00014,2]
[330994221,1719996139658,281.024487,0.00013699,2]
[330994222,1719996144669,500.0,0.00014,2]
[330994223,1719996156009,575.02,0.00014,2]
[330994224,1719996158196,500.0,0.00014,2]
[330994225,1719996158585,500.0,0.00014,2]
[330994226,1719996164771,500.0,0.00014,2]
[330994227,1719996181197,952.57,0.00014,2]
[330994228,1719996181996,24900.0,0.00013164,2]
[330994229,1719996190997,551.97,0.00014,2]
[330994230,1719996196286,284.1238717,0.00013901,2]
[330994231,1719996213482,500.0,0.00014,2]
[330994232,1719996218049,521.66246806,0.00014999,7]
[330994233,1719996239923,528.97,0.00014,2]
[330994234,1719996254796,500.0,0.00014,2]
[330994235,1719996273660,200.40321221,9.999e-05,2]
[330994239,1719996305170,500.0,0.00014,2]
[330994240,1719996305827,500.0,0.00014,2]
[330994241,1719996327923,1333.23,0.00014,2]
[330994243,1719996378959,700.23,0.00014,2]
[330994244,1719996381550,524.42642196,0.00014999,7]
[330994246,1719996391765,6517.12,0.00014,2]
[330994247,1719996411158,776.36,0.00014,2]
[330994248,1719996427124,848.84053924,9.999e-05,2]
[330994249,1719996434773,1407.62,0.00014,2]
[330994250,1719996437172,671.05,0.00014,2]
[330994251,1719996438030,500.0,0.00014,2]
[330994252,1719996444755,513.35970587,9.999e-05,2]
[330994253,1719996458130,500.0,0.00014,2]
[330994254,1719996488646,500.0,0.00014,2]
[330994255,1719996489254,526.94,0.00014,2]
[330994257,1719996545306,500.0,0.00014,2]
[330994259,1719996548763,500.0,0.00014,2]
[330994260,1719996550849,698.87,0.00014,2]
[330994261,1719996555858,500.0,0.00014,2]
[330994263,1719996567997,1277.68,0.00014,2]
[330994264,1719996574049,-500.0,0.00014001,2]
[330994265,1719996574081,-242.60207027,0.00014001,2]
[330994266,1719996574240,-257.39792973,0.00014001,2]
[330994267,1719996574271,-363.02541691,0.00014001,2]
[330994270,1719996587764,1533.62,0.00014,2]
[330994271,1719996598880,-136.97458309,0.00014001,2]
[330994272,1719996598910,-500.0,0.00014001,2]
[330994273,1719996598940,-132.88799552,0.00014001,2]
[330994274,1719996598974,-367.11200448,0.00014001,2]
[330994275,1719996599004,-314.83730394,0.00014001,2]
[330994276,1719996600718,735.21,0.00014,2]
[330994278,1719996602690,227.29909736,0.00013901,2]
[330994280,1719996614718,500.0,0.00014,2]
[330994281,1719996621529,633.51,0.00014,2]
[330994282,1719996631386,6245.57,0.00014,2]
[330994283,1719996632957,185.16269606,0.00014,2]
[330994331,1719996633536,-500.0,0.00014001,2]
[330994333,1719996633546,-573.2,0.00014001,2]
[330994335,1719996633555,-500.0,0.00014001,2]
[330994337,1719996633565,-500.0,0.00014001,2]
[330994339,1719996633574,-500.0,0.00014001,2]
[330994341,1719996633584,-500.0,0.00014001,2]
[330994343,1719996633593,-500.0,0.00014001,2]
[330994345,1719996633603,-500.0,0.00014001,2]
[330994347,1719996633613,-500.0,0.00014001,2]
[330994349,1719996633622,-500.0,0.00014001,2]
[330994351,1719996633632,-500.0,0.00014001,2]
[330994353,1719996633642,-505.66,0.00014001,2]
[330994355,1719996633652,-500.0,0.00014001,2]
[330994357,1719996633662,-500.0,0.00014001,2]
[330994360,1719996633671,-500.0,0.00014001,2]
[330994362,1719996633681,-500.0,0.00014001,2]
[330994364,1719996633690,-707.66,0.00014001,2]
[330994365,1719996633699,-500.0,0.00014001,2]
[330994367,1719996633709,-500.0,0.00014001,2]
[330994385,1719996633863,-1249.22,0.00014001,2]
[330994387,1719996633872,-500.0,0.00014001,2]
[330994390,1719996633883,-500.0,0.00014001,2]
[330994392,1719996633893,-500.0,0.00014001,2]
[330994394,1719996633906,-501.33395135,0.00014001,2]
[330994396,1719996633916,-629.82,0.00014001,2]
[330994398,1719996633925,-867.31,0.00014001,2]
[330994400,1719996633935,-500.0,0.00014001,2]
[330994402,1719996633944,-500.0,0.00014001,2]
[330994404,1719996633953,-500.0,0.00014001,2]
[330994406,1719996633963,-304.153136,0.00014001,2]
[330994408,1719996633973,-500.0,0.00014001,2]
[330994410,1719996633982,-500.0,0.00014001,2]
[330994412,1719996633992,-500.0,0.00014001,2]
[330994414,1719996634001,-513.0,0.00014001,2]
[330994416,1719996634011,-500.0,0.00014001,2]
[330994418,1719996634020,-500.0,0.00014001,2]
[330994420,1719996634030,-500.0,0.00014001,2]
[330994422,1719996634039,-1974.44,0.00014001,2]
[330994424,1719996634049,-1759.23,0.00014001,2]
[330994426,1719996634058,-500.0,0.00014001,2]
[330994428,1719996634067,-1458.65813782,0.00014001,2]
[330994485,1719996638164,-31.65186218,0.00014001,2]
[330994486,1719996638179,-500.0,0.00014001,2]
[330994487,1719996638189,-515.84,0.00014001,2]
[330994488,1719996638202,-770.74,0.00014001,2]
[330994489,1719996638213,-4989.93,0.00014001,2]
[330994490,1719996638223,-500.0,0.00014001,2]
[330994491,1719996638232,-500.0,0.00014001,2]
[330994492,1719996638242,-743.67,0.00014001,2]
[330994493,1719996638254,-500.0,0.00014001,2]
[330994494,1719996638263,-593.17,0.00014001,2]
[330994495,1719996638273,-500.0,0.00014001,2]
[330994496,1719996638286,-500.0,0.00014001,2]
[330994497,1719996638297,-158.21516792,0.00014001,2]
[330994498,1719996638306,-505.98,0.00014001,2]
[330994499,1719996638316,-2987.29,0.00014001,2]
[330994500,1719996638326,-500.0,0.00014001,2]
[330994501,1719996638335,-512.22,0.00014001,2]
[330994502,1719996638345,-646.89,0.00014001,2]
[330994503,1719996638354,-500.0,0.00014001,2]
[330994504,1719996638364,-500.0,0.00014001,2]
[330994505,1719996638373,-997.54,0.00014001,2]
[330994506,1719996638383,-605.63,0.00014001,2]
[330994507,1719996638396,-500.0,0.00014001,2]
[330994508,1719996638407,-591.31,0.00014001,2]
[330994509,1719996638417,-1738.59170137,0.00014001,2]
[330994510,1719996638430,-8882.63829863,0.00014001,2]
[330994511,1719996638439,-698.02,0.00014001,2]
[330994512,1719996638449,-500.0,0.00014001,2]
[330994513,1719996638459,-500.0,0.00014001,2]
[330994514,1719996638469,-500.0,0.00014001,2]
[330994515,1719996638478,-562.71,0.00014001,2]
[330994516,1719996638488,-657.53,0.00014001,2]
[330994517,1719996638497,-3137.33,0.00014002,2]
[330994518,1719996638507,-500.0,0.00014002,2]
[330994519,1719996638516,-8786.56,0.00014002,2]
[330994520,1719996638525,-227.29909732,0.00014038,2]
[330994521,1719996638536,-150.0,0.00014119,2]
[330994522,1719996638545,-877.0,0.00014119,2]
[330994523,1719996638554,-227.29909732,0.00014175,2]
[330994524,1719996638563,-573.2,0.00014273,2]
[330994525,1719996638573,-500.0,0.00014274,2]
[330994526,1719996638582,-5768.97,0.00014274,2]
[330994527,1719996638592,-500.0,0.00014274,2]
[330994528,1719996638602,-769.7,0.00014274,2]
[330994529,1719996638612,-500.0,0.00014274,2]
[330994530,1719996638622,-500.0,0.00014274,2]
[330994531,1719996638631,-500.0,0.00014274,2]
[330994532,1719996638641,-500.0,0.00014274,2]
[330994533,1719996638651,-5193.32,0.00014274,2]
[330994534,1719996638664,-500.0,0.00014274,2]
[330994535,1719996638676,-500.0,0.00014274,2]
[330994536,1719996638686,-417.17642833,0.00014274,2]
[330994541,1719996640685,-157.84357167,0.00014274,2]
[330994542,1719996640695,-500.0,0.00014274,2]
[330994543,1719996640704,-500.0,0.00014274,2]
[330994544,1719996640714,-952.57,0.00014274,2]
[330994546,1719996640723,-500.0,0.00014274,2]
[330994547,1719996640732,-528.97,0.00014274,2]
[330994549,1719996640741,-500.0,0.00014274,2]
[330994550,1719996640751,-776.36,0.00014274,2]
[330994551,1719996640760,-1407.62,0.00014274,2]
[330994552,1719996640770,-671.05,0.00014274,2]
[330994553,1719996640780,-500.0,0.00014274,2]
[330994554,1719996640789,-526.94,0.00014274,2]
[330994555,1719996640798,-500.0,0.00014274,2]
[330994556,1719996640807,-698.87,0.00014274,2]
[330994557,1719996640816,-1277.68,0.00014274,2]
[330994558,1719996640825,-1533.62,0.00014274,2]
[330994559,1719996640834,-735.21,0.00014274,2]
[330994560,1719996640843,-500.0,0.00014274,2]
[330994561,1719996640853,-633.51,0.00014274,2]
[330994562,1719996640862,-6245.57,0.00014274,2]
[330994563,1719996640871,-500.0,0.00014275,2]
[330994564,1719996640880,-573.2,0.00014275,2]
[330994565,1719996640889,-573.2,0.00014275,2]
[330994566,1719996640898,-500.0,0.00014275,2]
[330994567,1719996640908,-500.0,0.00014275,2]
[330994568,1719996640917,-500.0,0.00014275,2]
[330994569,1719996640926,-505.66,0.00014275,2]
[330994570,1719996640936,-500.0,0.00014275,2]
[330994571,1719996640944,-500.0,0.00014275,2]
[330994572,1719996640953,-707.66,0.00014275,2]
[330994573,1719996640963,-1249.22,0.00014275,2]
[330994574,1719996640972,-629.82,0.00014275,2]
[330994575,1719996640981,-867.31,0.00014275,2]
[330994576,1719996640990,-500.0,0.00014275,2]
[330994577,1719996640999,-500.0,0.00014275,2]
[330994578,1719996641008,-500.0,0.00014275,2]
[330994579,1719996641017,-500.0,0.00014275,2]
[330994580,1719996641027,-513.0,0.00014275,2]
[330994581,1719996641036,-500.0,0.00014275,2]
[330994582,1719996641045,-1974.44,0.00014275,2]
[330994583,1719996641054,-1759.23,0.00014275,2]
[330994584,1719996641063,-500.0,0.00014275,2]
[330994585,1719996641073,-1490.31,0.00014275,2]
[330994586,1719996641082,-515.84,0.00014275,2]
[330994587,1719996641091,-770.74,0.00014275,2]
[330994588,1719996641101,-4989.93,0.00014275,2]
[330994589,1719996641110,-743.67,0.00014275,2]
[330994590,1719996641119,-593.17,0.00014275,2]
[330994591,1719996641128,-505.98,0.00014275,2]
[330994592,1719996641136,-2987.29,0.00014275,2]
[330994593,1719996641146,-646.89,0.00014275,2]
[330994594,1719996641155,-422.53499741,0.00014275,2]
[330994595,1719996641164,-997.54,0.00014275,2]
[330994596,1719996641173,-605.63,0.00014275,2]
[330994597,1719996641181,-626.10854328,0.00014275,2]
[330994598,1719996641191,-591.31,0.00014275,2]
[330994599,1719996641204,-10621.23,0.00014275,2]
[330994600,1719996641213,-698.02,0.00014275,2]
[330994601,1719996641223,-500.0,0.00014275,2]
[330994602,1719996641232,-629.54361502,0.00014275,2]
[330994603,1719996641243,-562.71,0.00014275,2]
[330994604,1719996641252,-657.53,0.00014275,2]
[330994605,1719996641261,-3137.33,0.00014276,2]
[330994606,1719996641270,-500.0,0.00014276,2]
[330994607,1719996641280,-8786.56,0.00014276,2]
[330994608,1719996641290,-227.29909732,0.00014312,2]
[330994609,1719996641300,-227.29909732,0.00014449,2]
[330994610,1719996641309,-167.218685,0.00014453,2]
[330994611,1719996641318,-293.1949976,0.000145,2]
[330994612,1719996641327,-907.99125561,0.00014548,2]
[330994613,1719996641336,-500.0,0.00014548,2]
[330994614,1719996641345,-5768.97,0.00014548,2]
[330994615,1719996641354,-500.0,0.00014548,2]
[330994616,1719996641363,-769.7,0.00014548,2]
[330994617,1719996641372,-500.0,0.00014548,2]
[330994618,1719996641381,-573.2,0.00014548,2]
[330994619,1719996641393,-500.0,0.00014548,2]
[330994620,1719996641403,-500.0,0.00014548,2]
[330994621,1719996641413,-32.57496477,0.00014548,2]
[330994633,1719996644329,1809.91,0.00014,2]
[330994639,1719996646597,711.66,0.00014,2]
[330994640,1719996647019,500.0,0.00014,2]
[330994641,1719996665052,1290.32,0.00014,2]
[330994642,1719996672714,648.69,0.00014,2]
[330994643,1719996711179,681.7,0.00014,2]
[330994644,1719996720544,569.54,0.00014,2]
[330994645,1719996724733,500.0,0.00014,2]
[330994646,1719996727011,1145.12,0.00014,2]
[330994647,1719996730289,2738.35,0.00014,2]
[330994648,1719996738747,500.0,0.00014,2]
[330994649,1719996781449,300.0,0.00014,2]
[330994650,1719996785606,300.0,0.00014,2]
[330994651,1719996786595,640.64,0.00014,2]
[330994652,1719996787376,155.29033758,9.999e-05,2]
[330994654,1719996807861,500.0,0.00014,2]
[330994655,1719996814054,500.0,0.00014,2]
[330994656,1719996814146,605.22,0.00014,2]
[330994657,1719996818844,1460.82,0.00014,2]
[330994658,1719996825599,834.62,0.00014,2]
[330994659,1719996834275,702.68,0.00014,2]
[330994660,1719996841539,300.0,0.00014,2]
[330994661,1719996841811,500.0,0.00014,2]
[330994663,1719996858773,609.7,0.00014,2]
[330994664,1719996861376,157.30546467,0.00014,2]
[330994665,1719996872206,500.0,0.00014,2]
[330994666,1719996882340,500.0,0.00014,2]
[330994667,1719996883042,1838.93,0.00014,2]
[330994669,1719996893403,500.0,0.00014,2]
[330994670,1719996893838,500.0,0.00014,2]
[330994671,1719996899279,500.0,0.00014,2]
[330994672,1719996901372,300.0,0.00014,2]
[330994673,1719996905561,500.0,0.00014,2]
[330994674,1719996928359,500.0,0.00014,2]
[330994675,1719996929776,500.0,0.00014,2]
[330994676,1719996930996,154.85288975,9.999e-05,2]
[330994677,1719996931844,500.0,0.00014,2]
[330994678,1719996931893,9992.44,0.00014,2]
[330994679,1719996942102,5521.27,0.00014,2]
[330994680,1719996945057,500.0,0.00014,2]
[330994681,1719996945832,500.0,0.00014,2]
[330994682,1719996947574,500.0,0.00014,2]
[330994684,1719996953866,688.24,0.00014,2]
[330994685,1719996961105,237.0,0.00014,2]
[330994686,1719996966832,585.2,0.00014,2]
[330994687,1719996967233,295.10070097,0.00014,2]
[330994688,1719996967339,500.0,0.00014,2]
[330994689,1719996975137,500.0,0.00014,2]
[330994690,1719996975584,500.0,0.00014,2]
[330994691,1719996977640,500.0,0.00014,2]
[330994692,1719996977673,2814.36,0.00014,2]
[330994693,1719996978044,500.0,0.00014,2]
[330994694,1719996978076,500.0,0.00014,2]
[330994695,1719996984861,536.65,0.00014,2]
[330994696,1719996990046,500.0,0.00014,2]
[330994697,1719996993446,500.0,0.00014,2]
[330994698,1719996993883,500.0,0.00014,2]
[330994700,1719996995725,500.0,0.00014,2]
[330994701,1719997021964,500.0,0.00014,2]
[330994702,1719997031953,500.0,0.00014,2]
[330994703,1719997035265,500.0,0.00014,2]
[330994704,1719997036910,500.0,0.00014,2]
[330994705,1719997047328,501.0,0.00014,2]
[330994706,1719997052009,5291.22,0.00014,2]
[330994707,1719997062999,500.0,0.00014,2]
[330994708,1719997064928,500.0,0.00014,2]
[330994709,1719997078142,500.0,0.00014,2]
[330994710,1719997078932,500.0,0.00014,2]
[330994711,1719997086610,500.0,0.00014,2]
[330994712,1719997093072,705.05,0.00014,2]
[330994713,1719997095301,500.0,0.00014,2]
[330994714,1719997096938,500.0,0.00014,2]
[330994715,1719997101720,500.0,0.00014,2]
[330994716,1719997107435,626.51,0.00014,2]
[330994717,1719997110456,500.0,0.00014,2]
[330994718,1719997110890,500.0,0.00014,2]
[330994719,1719997118164,500.0,0.00014,2]
[330994720,1719997121861,500.0,0.00014,2]
[330994721,1719997128410,500.0,0.00014,2]
[330994722,1719997131502,5070.75,0.00014,2]
[330994723,1719997139855,500.0,0.00014,2]